fUST/lending_fUST_20241203
["ID","MTS","AMOUNT","RATE_DAILY","PERIOD"]
[343979576,1733169040973,-500.0,0.00027671,7]
[343979577,1733169040982,-1345.92,0.00027671,7]
[343979578,1733169040992,-500.0,0.00027671,7]
[343979579,1733169041001,-500.0,0.00027671,7]
[343979580,1733169041011,-500.0,0.00027671,7]
[343979581,1733169041020,-500.0,0.00027671,7]
[343979582,1733169041029,-500.0,0.00027671,7]
[343979583,1733169041038,-500.0,0.00027671,7]
[343979584,1733169041047,-500.0,0.00027671,7]
[343979585,1733169041057,-441.97535789,0.00027671,7]
[343979586,1733169041066,-282.05716843,0.00027671,7]
[343979587,1733169041076,-500.0,0.00027671,7]
[343979588,1733169041085,-500.0,0.00027671,7]
[343979589,1733169041094,-500.0,0.00027671,7]
[343979590,1733169041104,-500.0,0.00027671,7]
[343979591,1733169041113,-500.0,0.00027671,7]
[343979592,1733169041123,-500.0,0.00027671,7]
[343979593,1733169041132,-500.0,0.00027671,7]
[343979594,1733169041142,-233.25108335,0.00027671,7]
[343979595,1733169041151,-500.0,0.00027671,7]
[343979596,1733169041160,-500.0,0.00027671,7]
[343979597,1733169041169,-500.0,0.00027671,7]
[343979598,1733169041179,-500.0,0.00027671,7]
[343979599,1733169041191,-500.0,0.00027671,7]
[343979600,1733169041200,-500.0,0.00027671,7]
[343979601,1733169041209,-500.0,0.00027671,7]
[343979602,1733169041219,-435.22,0.00027671,7]
[343979603,1733169041229,-500.0,0.00027671,7]
[343979604,1733169041239,-4994.78,0.00027671,7]
[343979605,1733169041249,-500.0,0.00027671,7]
[343979606,1733169041259,-500.0,0.00027671,7]
[343979607,1733169041268,-457.51115234,0.00027671,7]
[343979608,1733169041278,-500.0,0.00027671,7]
[343979609,1733169041290,-500.0,0.00027671,7]
[343979610,1733169041299,-500.0,0.00027671,7]
[343979611,1733169041309,-714.81,0.00027671,7]
[343979612,1733169041319,-500.0,0.00027671,7]
[343979613,1733169041328,-500.0,0.00027671,7]
[343979614,1733169041337,-500.0,0.00027671,7]
[343979615,1733169041347,-500.0,0.00027671,7]
[343979616,1733169041356,-506.47983358,0.00027671,7]
[343979617,1733169041366,-481.28188634,0.00027671,7]
[343979618,1733169041375,-500.0,0.00027671,7]
[343979619,1733169041384,-500.0,0.00027671,7]
[343979620,1733169041394,-500.0,0.00027671,7]
[343979621,1733169041405,-500.0,0.00027671,7]
[343979622,1733169041415,-500.0,0.00027671,7]
[343979623,1733169041424,-500.0,0.00027671,7]
[343979624,1733169041436,-176.47232827,0.00027671,7]
[343979625,1733169041447,-500.0,0.00027671,7]
[343979626,1733169041456,-500.0,0.00027671,7]
[343979627,1733169041466,-516.07,0.00027671,7]
[343979628,1733169041475,-500.0,0.00027671,7]
[343979629,1733169041487,-500.0,0.00027671,7]
[343979630,1733169041497,-500.0,0.00027671,7]
[343979631,1733169041506,-500.0,0.00027671,7]
[343979632,1733169041516,-500.0,0.00027673,5]
[343979633,1733169041525,-151.14212539,0.00027673,5]
[343979634,1733169041534,-158.51690255,0.00027673,5]
[343979635,1733169041544,-1000.0,0.00027921,5]
[343979636,1733169041554,-500.0,0.00027944,7]
[343979637,1733169041563,-168.0,0.00027944,7]
[343979638,1733169041572,-480.844,0.00027944,7]
[343979639,1733169041581,-500.0,0.00027944,7]
[343979640,1733169041591,-500.0,0.00027944,7]
[343979641,1733169041600,-500.0,0.00027944,7]
[343979642,1733169041610,-247.76828152,0.00027944,7]
[343979643,1733169041619,-500.0,0.00027944,7]
[343979644,1733169041628,-568.38783952,0.00027944,7]
[343979645,1733169041637,-500.0,0.00027944,7]
[343979646,1733169041647,-500.0,0.00027944,7]
[343979647,1733169041656,-500.0,0.00027944,7]
[343979648,1733169041666,-500.0,0.00027944,7]
[343979649,1733169041675,-500.0,0.00027944,7]
[343979650,1733169041686,-500.0,0.00027944,7]
[343979651,1733169041696,-500.0,0.00027944,7]
[343979652,1733169041705,-500.0,0.00027944,7]
[343979653,1733169041715,-500.0,0.00027944,7]
[343979654,1733169041724,-500.0,0.00027944,7]
[343979655,1733169041733,-500.0,0.00027944,7]
[343979656,1733169041743,-500.0,0.00027944,7]
[343979657,1733169041752,-503.74640126,0.00027944,7]
[343979658,1733169041761,-500.0,0.00027944,7]
[343979659,1733169041770,-500.0,0.00027944,7]
[343979660,1733169041780,-500.0,0.00027944,7]
[343979661,1733169041789,-500.0,0.00027944,7]
[343979662,1733169041798,-500.0,0.00027944,7]
[343979663,1733169041808,-500.0,0.00027945,7]
[343979664,1733169041818,-500.0,0.00027945,7]
[343979665,1733169041827,-500.0,0.00027945,7]
[343979666,1733169041836,-500.0,0.00027945,7]
[343979667,1733169041845,-500.0,0.00027945,7]
[343979668,1733169041854,-532.38873308,0.00027945,7]
[343979669,1733169041864,-500.0,0.00027945,7]
[343979670,1733169041873,-286.94,0.00027945,7]
[343979671,1733169041882,-500.0,0.00027945,7]
[343979672,1733169041891,-1345.92,0.00027945,7]
[343979673,1733169041900,-500.0,0.00027945,7]
[343979674,1733169041975,-500.0,0.00027945,7]
[343979675,1733169041984,-500.0,0.00027945,7]
[343979676,1733169041994,-500.0,0.00027945,7]
[343979677,1733169042003,-500.0,0.00027945,7]
[343979678,1733169042012,-500.0,0.00027945,7]
[343979679,1733169042022,-500.0,0.00027945,7]
[343979680,1733169042031,-500.0,0.00027945,7]
[343979681,1733169042040,-500.0,0.00027945,7]
[343979682,1733169042050,-500.0,0.00027945,7]
[343979683,1733169042059,-500.0,0.00027945,7]
[343979684,1733169042070,-500.0,0.00027945,7]
[343979685,1733169042079,-500.0,0.00027945,7]
[343979686,1733169042089,-500.0,0.00027945,7]
[343979687,1733169042098,-517.24919213,0.00027945,7]
[343979688,1733169042108,-500.0,0.00027945,7]
[343979689,1733169042117,-4994.78,0.00027945,7]
[343979690,1733169042127,-500.0,0.00027945,7]
[343979691,1733169042136,-396.59720407,0.00027945,7]
[343979692,1733169042146,-500.0,0.00027945,7]
[343979693,1733169042155,-500.0,0.00027945,7]
[343979694,1733169042164,-714.81,0.00027945,7]
[343979695,1733169042174,-500.0,0.00027945,7]
[343979696,1733169042183,-500.0,0.00027945,7]
[343979697,1733169042193,-455.11721431,0.00027945,7]
[343979698,1733169042203,-304.28806382,0.00027945,7]
[343979699,1733169042212,-500.0,0.00027945,7]
[343979700,1733169042221,-500.0,0.00027945,7]
[343979701,1733169042230,-365.03578385,0.00027945,7]
[343979702,1733169042239,-500.14566746,0.00027945,7]
[343979703,1733169042249,-500.0,0.00027945,7]
[343979704,1733169042258,-500.0,0.00027945,7]
[343979705,1733169042268,-516.07,0.00027945,7]
[343979706,1733169042277,-500.0,0.00027945,7]
[343979707,1733169042286,-500.0,0.00027945,7]
[343979708,1733169042296,-500.0,0.00027945,7]
[343979709,1733169042305,-500.0,0.00027973,5]
[343979710,1733169042314,-1000.0,0.00028021,5]
[343979711,1733169042323,-9406.11862452,0.00028081,2]
[343979712,1733169042333,-155.26644963,0.00028158,2]
[343979713,1733169042343,-500.0,0.00028218,7]
[343979714,1733169042352,-500.0,0.00028218,7]
[343979715,1733169042361,-500.0,0.00028218,7]
[343979716,1733169042371,-500.0,0.00028218,7]
[343979717,1733169042380,-500.0,0.00028218,7]
[343979718,1733169042389,-242.48272404,0.00028218,7]
[343979719,1733169042399,-500.0,0.00028218,7]
[343979720,1733169042412,-500.0,0.00028218,7]
[343979721,1733169042421,-500.0,0.00028218,7]
[343979722,1733169042430,-500.0,0.00028218,7]
[343979723,1733169042441,-500.0,0.00028218,7]
[343979724,1733169042451,-500.0,0.00028218,7]
[343979725,1733169042460,-596.85,0.00028218,7]
[343979726,1733169042471,-500.0,0.00028218,7]
[343979727,1733169042482,-168.0,0.00028218,7]
[343979729,1733169042492,-500.0,0.00028218,7]
[343979730,1733169042502,-500.0,0.00028218,7]
[343979731,1733169042512,-500.0,0.00028218,7]
[343979732,1733169042522,-500.0,0.00028218,7]
[343979733,1733169042531,-500.0,0.00028218,7]
[343979734,1733169042541,-500.0,0.00028218,7]
[343979735,1733169042550,-500.0,0.00028218,7]
[343979736,1733169042559,-500.0,0.00028218,7]
[343979737,1733169042568,-552.54277647,0.00028218,7]
[343979738,1733169042578,-507.4904245,0.00028218,7]
[343979739,1733169042587,-253.32451548,0.00028218,7]
[343979740,1733169042597,-500.0,0.00028218,7]
[343979744,1733169042607,-291.25,0.00028218,7]
[343979746,1733169042616,-500.0,0.00028218,7]
[343979748,1733169042626,-500.0,0.00028218,7]
[343979750,1733169042635,-500.0,0.00028218,7]
[343979753,1733169042644,-500.0,0.00028218,7]
[343979754,1733169042654,-500.0,0.00028218,7]
[343979756,1733169042663,-500.0,0.00028218,7]
[343979757,1733169042673,-500.0,0.00028218,7]
[343979758,1733169042683,-500.0,0.00028218,7]
[343979759,1733169042694,-500.0,0.00028218,7]
[343979763,1733169042704,-500.0,0.00028218,7]
[343979765,1733169042713,-506.30099311,0.00028218,7]
[343979766,1733169042722,-500.0,0.00028218,7]
[343979768,1733169042731,-439.54,0.00028219,7]
[343979769,1733169042740,-1345.92,0.00028219,7]
[343979770,1733169042750,-500.0,0.00028219,7]
[343979772,1733169042759,-500.0,0.00028219,7]
[343979773,1733169042769,-500.0,0.00028219,7]
[343979774,1733169042779,-500.0,0.00028219,7]
[343979776,1733169042789,-500.0,0.00028219,7]
[343979778,1733169042800,-500.0,0.00028219,7]
[343979779,1733169042810,-500.0,0.00028219,7]
[343979781,1733169042819,-500.0,0.00028219,7]
[343979784,1733169042829,-500.0,0.00028219,7]
[343979785,1733169042839,-4994.78,0.00028219,7]
[343979786,1733169042852,-500.0,0.00028219,7]
[343979787,1733169042866,-500.0,0.00028219,7]
[343979789,1733169042879,-500.0,0.00028219,7]
[343979791,1733169042892,-714.81,0.00028219,7]
[343979793,1733169042903,-500.0,0.00028219,7]
[343979795,1733169042915,-373.83658762,0.00028219,7]
[343979796,1733169042927,-500.0,0.00028219,7]
[343979797,1733169042940,-500.0,0.00028219,7]
[343979798,1733169042952,-500.0,0.00028219,7]
[343979800,1733169042964,-500.0,0.00028219,7]
[343979802,1733169042977,-516.07,0.00028219,7]
[343979803,1733169042988,-500.0,0.00028219,7]
[343979804,1733169043001,-500.0,0.00028219,7]
[343979805,1733169043013,-298.61,0.00028219,7]
[343979806,1733169043024,-1000.0,0.00028221,5]
[343979807,1733169043035,-9406.11862452,0.0002824,2]
[343979808,1733169043047,-500.0,0.000283,5]
[343979809,1733169043059,-3742.72413044,0.00028364,2]
[343979810,1733169043072,-587.0,0.0002842,2]
[343979811,1733169043084,-500.0,0.00028492,7]
[343979812,1733169043096,-500.0,0.00028492,7]
[343979813,1733169043108,-500.0,0.00028492,7]
[343979814,1733169043118,-500.0,0.00028492,7]
[343979815,1733169043129,-500.0,0.00028492,7]
[343979816,1733169043141,-500.0,0.00028492,7]
[343979817,1733169043152,-500.0,0.00028492,7]
[343979818,1733169043164,-500.0,0.00028492,7]
[343979819,1733169043177,-168.0,0.00028492,7]
[343979820,1733169043192,-500.0,0.00028492,7]
[343979821,1733169043206,-500.0,0.00028492,7]
[343979822,1733169043219,-500.0,0.00028492,7]
[343979823,1733169043233,-500.0,0.00028492,7]
[343979824,1733169043247,-500.0,0.00028492,7]
[343979825,1733169043261,-500.0,0.00028492,7]
[343979827,1733169043275,-458.50214816,0.00028492,7]
[343979828,1733169043287,-500.0,0.00028492,7]
[343979829,1733169043298,-500.0,0.00028492,7]
[343979830,1733169043310,-500.0,0.00028492,7]
[343979831,1733169043322,-500.0,0.00028492,7]
[343979832,1733169043335,-500.0,0.00028492,7]
[343979833,1733169043350,-500.0,0.00028492,7]
[343979834,1733169043364,-1345.92,0.00028493,7]
[343979835,1733169043377,-500.0,0.00028493,7]
[343979836,1733169043388,-500.0,0.00028493,7]
[343979837,1733169043405,-500.0,0.00028493,7]
[343979838,1733169043418,-500.0,0.00028493,7]
[343979839,1733169043432,-500.0,0.00028493,7]
[343979840,1733169043454,-500.0,0.00028493,7]
[343979841,1733169043467,-500.0,0.00028493,7]
[343979842,1733169043480,-500.0,0.00028493,7]
[343979843,1733169043493,-4994.78,0.00028493,7]
[343979844,1733169043506,-500.0,0.00028493,7]
[343979845,1733169043517,-500.0,0.00028493,7]
[343979846,1733169043528,-500.0,0.00028493,7]
[343979847,1733169043540,-714.81,0.00028493,7]
[343979848,1733169043552,-323.43065469,0.00028493,7]
[343979849,1733169043565,-500.0,0.00028493,7]
[343979850,1733169043576,-500.0,0.00028493,7]
[343979851,1733169043588,-505.96533414,0.00028493,7]
[343979852,1733169043600,-500.0,0.00028493,7]
[343979853,1733169043611,-516.07,0.00028493,7]
[343979854,1733169043623,-500.0,0.00028493,7]
[343979855,1733169043634,-500.0,0.00028493,7]
[343979856,1733169043646,-9406.11862452,0.00028611,2]
[343979857,1733169043657,-500.0,0.00028766,7]
[343979858,1733169043668,-500.0,0.00028766,7]
[343979859,1733169043679,-500.0,0.00028766,7]
[343979860,1733169043697,-269.87895472,0.00028766,7]
[343979861,1733169043711,-242.84425141,0.00028766,7]
[343979862,1733169043723,-500.0,0.00028766,7]
[343979863,1733169043734,-500.0,0.00028766,7]
[343979864,1733169043744,-500.0,0.00028766,7]
[343979865,1733169043755,-500.0,0.00028766,7]
[343979866,1733169043766,-500.0,0.00028766,7]
[343979867,1733169043778,-500.0,0.00028766,7]
[343979868,1733169043790,-500.0,0.00028766,7]
[343979869,1733169043802,-561.18534592,0.00028766,7]
[343979870,1733169043813,-500.0,0.00028766,7]
[343979871,1733169043824,-500.0,0.00028766,7]
[343979872,1733169043835,-500.0,0.00028766,7]
[343979873,1733169043846,-1345.92,0.00028767,7]
[343979874,1733169043856,-500.0,0.00028767,7]
[343979875,1733169043867,-177.32480934,0.00028767,7]
[343979876,1733169043878,-500.0,0.00028767,7]
[343979877,1733169043889,-500.0,0.00028767,7]
[343979878,1733169043901,-500.0,0.00028767,7]
[343979879,1733169043911,-500.0,0.00028767,7]
[343979880,1733169044024,-4994.78,0.00028767,7]
[343979881,1733169044034,-374.02868751,0.00028767,7]
[343979882,1733169044043,-500.0,0.00028767,7]
[343979883,1733169044053,-500.0,0.00028767,7]
[343979884,1733169044063,-714.81,0.00028767,7]
[343979885,1733169044073,-500.0,0.00028767,7]
[343979886,1733169044082,-500.0,0.00028767,7]
[343979887,1733169044091,-500.0,0.00028767,7]
[343979888,1733169044100,-516.07,0.00028767,7]
[343979889,1733169044109,-381.752237,0.00028776,2]
[343979890,1733169044119,-187.643025,0.00028776,2]
[343979891,1733169044129,-172.183979,0.00028776,2]
[343979892,1733169044139,-224.249658,0.00028776,2]
[343979893,1733169044148,-1000.0,0.00028848,5]
[343979894,1733169044158,-170.25,0.000289,31]
[343979895,1733169044168,-170.25,0.000289,31]
[343979896,1733169044178,-170.25,0.000289,31]
[343979897,1733169044190,-170.25,0.000289,31]
[343979898,1733169044200,-170.25,0.000289,31]
[343979899,1733169044209,-170.25,0.000289,31]
[343979900,1733169044220,-170.25,0.000289,31]
[343979901,1733169044230,-170.25,0.000289,31]
[343979902,1733169044240,-170.25,0.000289,31]
[343979903,1733169044249,-170.25,0.000289,31]
[343979904,1733169044259,-170.25,0.000289,31]
[343979905,1733169044269,-170.25,0.000289,31]
[343979906,1733169044279,-1500.0,0.00028922,5]
[343979907,1733169044289,-170.2732327,0.00029,2]
[343979908,1733169044299,-9406.11862452,0.00029018,2]
[343979909,1733169044309,-1500.0,0.00029022,5]
[343979910,1733169044319,-500.0,0.0002904,7]
[343979911,1733169044329,-500.0,0.0002904,7]
[343979912,1733169044339,-500.0,0.0002904,7]
[343979913,1733169044349,-500.0,0.0002904,7]
[343979914,1733169044360,-500.0,0.0002904,7]
[343979915,1733169044370,-500.0,0.0002904,7]
[343979916,1733169044381,-500.0,0.0002904,7]
[343979917,1733169044390,-500.0,0.0002904,7]
[343979918,1733169044401,-500.0,0.0002904,7]
[343979919,1733169044414,-500.0,0.0002904,7]
[343979920,1733169044423,-1169.27083333,0.00029041,7]
[343979921,1733169044433,-1345.92,0.00029041,7]
[343979922,1733169044446,-500.0,0.00029041,7]
[343979923,1733169044456,-500.0,0.00029041,7]
[343979924,1733169044465,-500.0,0.00029041,7]
[343979925,1733169044475,-500.0,0.00029041,7]
[343979926,1733169044486,-500.0,0.00029041,7]
[343979927,1733169044495,-4994.78,0.00029041,7]
[343979928,1733169044504,-500.0,0.00029041,7]
[343979929,1733169044514,-500.0,0.00029041,7]
[343979930,1733169044524,-714.81,0.00029041,7]
[343979931,1733169044533,-606.75,0.00029041,7]
[343979932,1733169044543,-500.0,0.00029041,7]
[343979933,1733169044553,-500.0,0.00029041,7]
[343979934,1733169044562,-516.07,0.00029041,7]
[343979935,1733169044572,-3742.72413044,0.0002907,2]
[343979936,1733169044581,-381.752237,0.00029136,2]
[343979937,1733169044591,-187.643025,0.00029136,2]
[343979938,1733169044601,-224.249658,0.00029136,2]
[343979939,1733169044610,-9406.11862452,0.00029138,2]
[343979940,1733169044619,-999.04258576,0.00029183,2]
[343979941,1733169044629,-1500.0,0.00029222,5]
[343979942,1733169044638,-500.0,0.00029282,7]
[343979943,1733169044648,-500.0,0.00029314,7]
[343979944,1733169044658,-500.0,0.00029314,7]
[343979945,1733169044668,-500.0,0.00029314,7]
[343979946,1733169044677,-500.0,0.00029314,7]
[343979947,1733169044688,-500.0,0.00029314,7]
[343979948,1733169044699,-500.0,0.00029314,7]
[343979949,1733169044710,-500.0,0.00029314,7]
[343979950,1733169044721,-500.0,0.00029314,7]
[343979951,1733169044739,-500.0,0.00029314,7]
[343979952,1733169044760,-500.0,0.00029314,7]
[343979953,1733169044781,-1345.92,0.00029315,7]
[343979954,1733169044800,-500.0,0.00029315,7]
[343979955,1733169044810,-514.52,0.00029315,7]
[343979956,1733169044819,-500.0,0.00029315,7]
[343979957,1733169044829,-4994.78,0.00029315,7]
[343979958,1733169044839,-500.0,0.00029315,7]
[343979959,1733169044848,-500.0,0.00029315,7]
[343979960,1733169044859,-714.81,0.00029315,7]
[343979961,1733169044868,-500.0,0.00029315,7]
[343979962,1733169044878,-500.0,0.00029315,7]
[343979963,1733169044888,-516.07,0.00029315,7]
[343979964,1733169044898,-381.752237,0.00029495,2]
[343979965,1733169044907,-187.643025,0.00029495,2]
[343979966,1733169044917,-224.249658,0.00029495,2]
[343979967,1733169044927,-999.04258576,0.00029505,2]
[343979968,1733169044940,-9406.11862452,0.00029526,2]
[343979969,1733169044949,-155.01332248,0.00029566,2]
[343979970,1733169044958,-393.83224887,0.00029588,7]
[343979971,1733169044969,-500.0,0.00029588,7]
[343979972,1733169044978,-500.0,0.00029588,7]
[343979973,1733169044988,-500.0,0.00029588,7]
[343979974,1733169044998,-500.0,0.00029588,7]
[343979975,1733169045008,-500.0,0.00029588,7]
[343979976,1733169045017,-2689.7,0.00029588,7]
[343979977,1733169045027,-500.0,0.00029588,7]
[343979978,1733169045036,-500.0,0.00029588,7]
[343979979,1733169045046,-500.0,0.00029588,7]
[343979980,1733169045055,-500.0,0.00029588,7]
[343979981,1733169045065,-482.16030265,0.00029588,7]
[343979982,1733169045075,-500.0,0.00029588,7]
[343979983,1733169045084,-186.8,0.00029588,7]
[343979984,1733169045093,-1345.92,0.00029589,7]
[343979985,1733169045103,-500.0,0.00029589,7]
[343979986,1733169045112,-4994.78,0.00029589,7]
[343979987,1733169045122,-500.0,0.00029589,7]
[343979988,1733169045131,-500.0,0.00029589,7]
[343979989,1733169045141,-714.81,0.00029589,7]
[343979990,1733169045150,-500.0,0.00029589,7]
[343979991,1733169045160,-500.0,0.00029589,7]
[343979992,1733169045170,-516.07,0.00029589,7]
[343979993,1733169045180,-9406.11862452,0.00029708,2]
[343979994,1733169045191,-3742.72413044,0.00029777,2]
[343979995,1733169045201,-999.04258576,0.00029828,2]
[343979996,1733169045212,-1500.0,0.0002985,5]
[343979997,1733169045223,-381.752237,0.00029855,2]
[343979998,1733169045233,-187.643025,0.00029855,2]
[343979999,1733169045243,-224.249658,0.00029855,2]
[343980000,1733169045254,-500.0,0.00029862,7]
[343980001,1733169045264,-500.0,0.00029862,7]
[343980002,1733169045274,-500.0,0.00029862,7]
[343980003,1733169045284,-500.0,0.00029862,7]
[343980004,1733169045294,-500.0,0.00029862,7]
[343980005,1733169045305,-2689.7,0.00029862,7]
[343980006,1733169045314,-500.0,0.00029862,7]
[343980007,1733169045324,-500.0,0.00029862,7]
[343980008,1733169045334,-500.0,0.00029862,7]
[343980009,1733169045343,-500.0,0.00029862,7]
[343980010,1733169045353,-1345.92,0.00029863,7]
[343980011,1733169045363,-500.0,0.00029863,7]
[343980012,1733169045372,-4994.78,0.00029863,7]
[343980013,1733169045382,-500.0,0.00029863,7]
[343980014,1733169045393,-490.00000003,0.00029863,7]
[343980015,1733169045406,-714.81,0.00029863,7]
[343980016,1733169045416,-500.0,0.00029863,7]
[343980017,1733169045425,-500.0,0.00029863,7]
[343980018,1733169045437,-516.07,0.00029863,7]
[343980019,1733169045449,-170.25,0.000299,31]
[343980020,1733169045459,-170.25,0.000299,31]
[343980021,1733169045468,-170.25,0.000299,31]
[343980022,1733169045478,-170.25,0.000299,31]
[343980023,1733169045490,-170.25,0.000299,31]
[343980024,1733169045500,-170.25,0.000299,31]
[343980025,1733169045510,-170.25,0.000299,31]
[343980026,1733169045520,-170.25,0.000299,31]
[343980027,1733169045530,-170.25,0.000299,31]
[343980028,1733169045540,-170.25,0.000299,31]
[343980029,1733169045550,-170.25,0.000299,31]
[343980030,1733169045561,-170.25,0.000299,31]
[343980031,1733169045571,-170.25,0.000299,31]
[343980032,1733169045581,-170.25,0.000299,31]
[343980033,1733169045590,-170.25,0.000299,31]
[343980034,1733169045600,-170.25,0.000299,31]
[343980035,1733169045610,-170.25,0.000299,31]
[343980036,1733169045619,-170.25,0.000299,31]
[343980037,1733169045629,-170.25,0.000299,31]
[343980038,1733169045639,-170.25,0.000299,31]
[343980041,1733169045648,-170.25,0.000299,31]
[343980043,1733169045658,-170.25,0.000299,31]
[343980044,1733169045668,-170.25,0.000299,31]
[343980045,1733169045678,-170.25,0.000299,31]
[343980046,1733169045689,-9406.11862452,0.00029912,2]
[343980047,1733169045699,-159.25060079,0.00029914,2]
[343980048,1733169045709,-334.0397932,0.00029914,2]
[343980049,1733169045718,-200.0,0.0003,120]
[343980050,1733169045728,-172.8,0.0003,2]
[343980051,1733169045737,-151.0,0.0003,120]
[343980052,1733169045747,-151.0,0.0003,120]
[343980053,1733169045757,-157.092,0.0003,2]
[343980054,1733169045767,-162.0,0.0003,2]
[343980055,1733169045777,-201.0,0.0003,2]
[343980056,1733169045787,-823.0,0.00030001,2]
[343980057,1733169045796,-1345.92,0.00030136,7]
[343980058,1733169045806,-500.0,0.00030136,7]
[343980059,1733169045816,-500.0,0.00030136,7]
[343980060,1733169045826,-500.0,0.00030136,7]
[343980061,1733169045835,-500.0,0.00030136,7]
[343980062,1733169045844,-643.50471269,0.00030136,7]
[343980063,1733169045854,-500.0,0.00030136,7]
[343980064,1733169045865,-2689.7,0.00030136,7]
[343980065,1733169045874,-4994.78,0.00030136,7]
[343980066,1733169045883,-500.0,0.00030136,7]
[343980067,1733169045893,-500.0,0.00030136,7]
[343980068,1733169045902,-524.40545518,0.00030136,7]
[343980069,1733169045911,-500.0,0.00030136,7]
[343980070,1733169045920,-714.81,0.00030136,7]
[343980071,1733169045930,-500.0,0.00030136,7]
[343980072,1733169045941,-500.0,0.00030136,7]
[343980073,1733169045951,-500.0,0.00030136,7]
[343980074,1733169045961,-197.042322,0.00030137,120]
[343980075,1733169045970,-999.04258576,0.0003015,2]
[343980076,1733169045980,-172.183979,0.00030215,2]
[343980077,1733169045990,-381.752237,0.00030215,2]
[343980078,1733169045999,-187.643025,0.00030215,2]
[343980079,1733169046010,-224.249658,0.00030215,2]
[343980080,1733169046019,-320.14634319,0.0003022,5]
[343980081,1733169046028,-638.4,0.00030228,30]
[343980082,1733169046038,-1093.3550722,0.0003032,5]
[343980083,1733169046047,-9406.11862452,0.00030337,2]
[343980084,1733169046057,-1345.92,0.0003041,7]
[343980085,1733169046067,-500.0,0.0003041,7]
[343980086,1733169046076,-372.19,0.0003041,7]
[343980087,1733169046086,-457.02965076,0.0003041,7]
[343980088,1733169046096,-500.0,0.0003041,7]
[343980089,1733169046105,-500.0,0.0003041,7]
[343980090,1733169046115,-2689.7,0.0003041,7]
[343980091,1733169046201,-4994.78,0.0003041,7]
[343980092,1733169046213,-500.0,0.0003041,7]
[343980093,1733169046223,-500.0,0.0003041,7]
[343980094,1733169046233,-714.81,0.0003041,7]
[343980095,1733169046243,-500.0,0.0003041,7]
[343980096,1733169046254,-500.0,0.0003041,7]
[343980097,1733169046263,-500.0,0.0003041,7]
[343980098,1733169046273,-666.0,0.00030471,2]
[343980099,1733169046285,-500.0,0.00030473,5]
[343980100,1733169046295,-500.61610407,0.00030473,5]
[343980101,1733169046305,-999.04258576,0.00030473,2]
[343980102,1733169046315,-33000.0,0.00030478,2]
[343980103,1733169046325,-3742.72413044,0.00030483,2]
[343980104,1733169046335,-980.49,0.000305,2]
[343980105,1733169046344,-501.55140692,0.0003051,11]
[343980106,1733169046354,-400.1007628,0.0003052,5]